bitfinex/quotes_BTCUSD_20250723
["timestamp","ask_amount","ask_price","bid_price","bid_amount"]
[1753238055538,0.45649186,119360.0,119350.0,0.13496]
[1753238055752,0.45439443,119360.0,119350.0,0.13496]
[1753238055968,0.45439443,119360.0,119350.0,0.004]
[1753238056181,0.22853252,119360.0,119350.0,0.13092]
[1753238056425,0.22853252,119360.0,119350.0,0.31525157]
[1753238056652,0.22853252,119360.0,119350.0,0.31625157]
[1753238056870,0.22853252,119360.0,119350.0,0.31625171]
[1753238057100,0.47853252,119360.0,119350.0,0.31625171]
[1753238057332,0.47853252,119360.0,119350.0,0.13192]
[1753238057551,0.47953252,119360.0,119350.0,0.13292]
[1753238057777,0.471155,119360.0,119350.0,0.13292]
[1753238058013,0.68763918,119360.0,119350.0,0.13292]
[1753238058223,0.7050882,119360.0,119350.0,0.13292]
[1753238058670,0.48022629,119360.0,119350.0,0.13292]
[1753238058895,0.7050882,119360.0,119350.0,0.13292]
[1753238062498,0.7050882,119360.0,119350.0,0.13292]
[1753238067763,0.7050882,119360.0,119350.0,0.13292]
[1753238067989,0.7050882,119360.0,119350.0,0.002]
[1753238072689,1.1050882,119360.0,119350.0,0.002]
[1753238073121,1.1050882,119360.0,119350.0,0.13268]
[1753238073768,1.1050882,119360.0,119350.0,0.002]
[1753238073979,1.1050882,119360.0,119350.0,0.13268]
[1753238074449,0.88022629,119360.0,119350.0,0.13268]
[1753238074666,1.1050882,119360.0,119350.0,0.13268]
[1753238075799,1.1050882,119360.0,119350.0,0.001]
[1753238076016,1.1070882,119360.0,119350.0,0.13152]
[1753238076237,1.1060882,119360.0,119350.0,0.13052]
[1753238076670,1.1080882,119360.0,119350.0,0.13152]
[1753238078426,1.41742741,119360.0,119350.0,0.13152]
[1753238079769,1.35742741,119360.0,119350.0,0.001]
[1753238080039,1.44190471,119360.0,119350.0,0.001]
[1753238080257,1.43257041,119360.0,119350.0,0.001]
[1753238080947,1.43257041,119360.0,119340.0,0.13044]
[1753238080948,0.56550195,119350.0,119340.0,0.13044]
[1753238081177,0.87997116,119350.0,119340.0,0.13044]
[1753238082021,1.12997116,119350.0,119340.0,0.13044]
[1753238082660,1.15511516,119350.0,119340.0,0.13044]
[1753238083293,1.15711516,119350.0,119340.0,0.13144]
[1753238084404,1.18185671,119350.0,119340.0,0.13144]
[1753238084634,1.18285671,119350.0,119340.0,0.13144]
[1753238086170,0.9579948,119350.0,119340.0,0.13144]
[1753238086393,1.18285671,119350.0,119340.0,0.13144]
[1753238087441,0.84285671,119350.0,119340.0,0.13144]
[1753238092665,0.81771271,119350.0,119340.0,0.13144]
[1753238094334,0.81771271,119350.0,119340.0,0.001]
[1753238094553,1.39339166,119350.0,119340.0,0.001]
[1753238095631,0.48266219,119330.0,119320.0,0.13352]
[1753238095848,0.7920014,119330.0,119320.0,0.13352]
[1753238096059,0.7941314,119330.0,119320.0,0.13352]
[1753238096274,0.7971314,119330.0,119320.0,0.13352]
[1753238096493,1.06984233,119330.0,119320.0,0.13352]
[1753238096912,0.54668042,119330.0,119320.0,0.13352]
[1753238097125,0.77154233,119330.0,119320.0,0.13352]
[1753238097336,0.77254233,119330.0,119320.0,0.13452]
[1753238097791,0.88768042,119330.0,119320.0,0.13452]
[1753238097981,1.36254233,119330.0,119320.0,0.13452]
[1753238098206,1.36254233,119330.0,119320.0,0.13552]
[1753238098414,1.49701963,119330.0,119320.0,0.13552]
[1753238098623,1.41254233,119330.0,119320.0,0.13452]
[1753238098845,1.41454233,119330.0,119320.0,0.13452]
[1753238099057,1.41354233,119330.0,119320.0,0.13352]
[1753238099272,1.41654233,119330.0,119320.0,0.13452]
[1753238100280,1.19168042,119330.0,119320.0,0.13452]
[1753238100721,1.20004399,119330.0,119320.0,0.13452]
[1753238101150,1.23033049,119330.0,119320.0,0.13452]
[1753238101999,1.4551924,119330.0,119320.0,0.13452]
[1753238102281,0.5011268,119320.0,119310.0,0.13048]
[1753238102542,1.04045792,119320.0,119310.0,0.13048]
[1753238102976,1.29045792,119320.0,119310.0,0.13048]
[1753238103618,1.29045792,119320.0,119310.0,0.13097064]
[1753238104253,1.29145792,119320.0,119310.0,0.13097064]
[1753238104906,1.06659601,119320.0,119310.0,0.13097064]
[1753238105787,0.8417341,119320.0,119310.0,0.13097064]
[1753238106003,1.06659601,119320.0,119310.0,0.13097064]
[1753238107097,1.06759601,119320.0,119310.0,0.13197064]
[1753238107940,1.29245792,119320.0,119310.0,0.13197064]
[1753238108150,0.99315792,119320.0,119310.0,0.13197064]
[1753238108799,0.76829601,119320.0,119310.0,0.13197064]
[1753238109023,0.99315792,119320.0,119310.0,0.13197064]
[1753238109254,0.99315792,119320.0,119310.0,0.13189064]
[1753238111861,0.99015792,119320.0,119310.0,0.16409064]
[1753238112081,0.76316601,119320.0,119310.0,0.16933064]
[1753238113620,0.5383041,119320.0,119310.0,0.16933064]
[1753238114060,0.5383041,119320.0,119310.0,0.33696118]
[1753238114291,0.52992349,119320.0,119310.0,0.16933064]
[1753238116889,1.07345062,119320.0,119310.0,0.00149064]
[1753238117109,1.10575062,119320.0,119310.0,0.00149064]
[1753238117753,1.07345062,119320.0,119310.0,0.00149064]
[1753238117997,1.07245062,119320.0,119310.0,0.00149064]
[1753238118246,0.98683731,119320.0,119310.0,0.13289064]
[1753238118477,0.98583731,119320.0,119310.0,0.13189064]
[1753238118694,0.98983731,119320.0,119310.0,0.13289064]
[1753238118913,0.98983731,119320.0,119310.0,0.14899064]
[1753238119121,0.7618654,119320.0,119310.0,0.01859064]
[1753238119354,0.98672731,119320.0,119310.0,0.14899064]
[1753238119580,0.98983731,119320.0,119310.0,0.14899064]
[1753238120575,0.98983731,119320.0,119310.0,0.13289064]
[1753238120801,1.01498831,119320.0,119310.0,0.13289064]
[1753238121251,1.09946561,119320.0,119310.0,0.13289064]
[1753238121455,1.01498831,119320.0,119310.0,0.13289064]
[1753238121929,1.03078831,119320.0,119310.0,0.13289064]
[1753238122371,1.04628831,119320.0,119310.0,0.13289064]
[1753238123404,1.17664831,119320.0,119310.0,0.13289064]
[1753238123827,1.19160962,119320.0,119310.0,0.13289064]
[1753238124316,1.17664831,119320.0,119310.0,0.13289064]
[1753238125250,1.17664831,119320.0,119310.0,0.00249064]
[1753238125478,1.22664831,119320.0,119310.0,0.00249064]
[1753238130074,1.19534831,119320.0,119310.0,0.00249064]
[1753238131655,1.19506831,119320.0,119310.0,0.00249064]
[1753238131872,1.31044561,119320.0,119310.0,0.00249064]
[1753238133470,1.27954561,119320.0,119310.0,0.00249064]
[1753238133981,1.19506831,119320.0,119310.0,0.00249064]
[1753238134191,1.19195831,119320.0,119310.0,0.01759064]
[1753238134395,1.19195831,119320.0,119310.0,0.03319064]
[1753238135799,1.19506831,119320.0,119310.0,0.01759064]
[1753238136069,1.19506831,119320.0,119310.0,0.00249064]
[1753238136303,1.27954561,119320.0,119310.0,0.00249064]
[1753238138983,1.19506831,119320.0,119310.0,0.00249064]
[1753238139416,0.74534449,119320.0,119310.0,0.00249064]
[1753238139635,1.19506831,119320.0,119310.0,0.00249064]
[1753238141078,1.19506831,119320.0,119310.0,0.01779064]
[1753238141290,1.19506831,119320.0,119310.0,0.03399064]
[1753238141505,1.19195831,119320.0,119310.0,0.03399064]
[1753238142556,1.25647833,119320.0,119310.0,0.03399064]
[1753238142970,1.19195831,119320.0,119310.0,0.03399064]
[1753238145550,1.06187831,119320.0,119310.0,0.03399064]
[1753238145770,1.19187831,119320.0,119310.0,0.03399064]
[1753238146409,1.06187831,119320.0,119310.0,0.03399064]
[1753238146638,1.19493831,119320.0,119310.0,0.03399064]
[1753238147061,1.06497831,119320.0,119310.0,0.03399064]
[1753238147270,1.19485831,119320.0,119310.0,0.03399064]
[1753238148355,1.21028844,119320.0,119310.0,0.03399064]
[1753238148573,1.08040844,119320.0,119310.0,0.03399064]
[1753238148834,1.21024844,119320.0,119310.0,0.03399064]
[1753238149049,1.08040844,119320.0,119310.0,0.03399064]
[1753238149265,1.21040844,119320.0,119310.0,0.01779064]
[1753238151181,1.21040844,119320.0,119310.0,0.00249064]
[1753238151705,1.19497831,119320.0,119310.0,0.00249064]
[1753238151963,1.19497831,119320.0,119310.0,0.03369064]
[1753238152175,1.19187831,119320.0,119310.0,0.03369064]
[1753238152432,1.06187831,119320.0,119310.0,0.03369064]
[1753238152914,1.06187831,119320.0,119310.0,0.03889064]
[1753238152915,0.98464731,119320.0,119310.0,0.03889064]
[1753238153172,0.7597854,119320.0,119310.0,0.03889064]
[1753238153903,0.98464731,119320.0,119310.0,0.03889064]
[1753238154138,1.38464731,119320.0,119310.0,0.03889064]
[1753238155181,0.98464731,119320.0,119310.0,0.03889064]
[1753238156160,0.98662731,119320.0,119310.0,0.03889064]
[1753238156382,0.98662731,119320.0,119310.0,0.03576064]
[1753238157284,0.98662731,119320.0,119310.0,0.03369064]
[1753238158229,1.07420461,119320.0,119310.0,0.03369064]
[1753238158716,0.98972731,119320.0,119310.0,0.03369064]
[1753238158964,0.98662731,119320.0,119310.0,0.03369064]
[1753238159298,0.98662731,119320.0,119310.0,0.03576064]
[1753238159547,0.98662731,119320.0,119310.0,0.03889064]
[1753238160240,0.98662731,119320.0,119310.0,0.16889064]
[1753238160799,0.53690349,119320.0,119310.0,0.16576064]
[1753238161022,0.98662731,119320.0,119310.0,0.16576064]
[1753238161425,0.98972731,119320.0,119310.0,0.16373064]
[1753238162093,0.98662731,119320.0,119310.0,0.16373064]
[1753238163124,0.98972731,119320.0,119310.0,0.16369064]
[1753238163397,1.05233143,119320.0,119310.0,0.16369064]
[1753238163596,1.05233143,119320.0,119310.0,0.14839064]
[1753238163816,0.98662731,119320.0,119310.0,0.16369064]
[1753238164243,0.7597854,119320.0,119310.0,0.16889064]
[1753238164482,0.74233638,119320.0,119310.0,0.16889064]
[1753238164698,0.4497579,119320.0,119310.0,0.16889064]
[1753238164909,0.42461649,119320.0,119310.0,0.35328394]
[1753238165124,0.257,119320.0,119310.0,0.37004621]
[1753238165330,0.27444902,119320.0,119310.0,0.37004621]
[1753238165749,0.257,119320.0,119310.0,0.37004621]
[1753238165956,0.27444902,119320.0,119310.0,0.36904621]
[1753238166163,0.27044902,119320.0,119310.0,0.36904621]
[1753238166379,0.27682928,119320.0,119310.0,0.36904621]
[1753238166616,0.43606551,119320.0,119310.0,0.36066518]
[1753238166822,0.4548261,119320.0,119310.0,0.36904628]
[1753238167228,0.45282596,119320.0,119310.0,0.37742731]
[1753238167574,0.46220643,119320.0,119310.0,0.36066518]
[1753238167783,0.46220636,119320.0,119310.0,0.36904635]
[1753238168209,0.46220643,119320.0,119310.0,0.36066518]
[1753238168412,0.70382963,119320.0,119310.0,0.3439027]
[1753238168612,0.69544944,119320.0,119310.0,0.16789064]
[1753238168861,0.70383026,119320.0,119310.0,0.17627216]
[1753238169012,0.70383026,119320.0,119310.0,0.16789064]
[1753238169215,0.70383026,119320.0,119310.0,0.17627216]
[1753238169412,0.67868899,119320.0,119310.0,0.16789064]
[1753238169865,0.67868864,119320.0,119310.0,0.35228401]
[1753238170035,0.6870689,119320.0,119310.0,0.34390263]
[1753238170237,0.69544944,119320.0,119310.0,0.17627216]
[1753238170476,0.69544944,119320.0,119310.0,0.18465361]
[1753238170685,0.47058753,119320.0,119310.0,0.16789064]
[1753238170896,0.69544979,119320.0,119310.0,0.16789064]
[1753238172646,0.47058788,119320.0,119310.0,0.17627209]
[1753238172850,0.68706904,119320.0,119310.0,0.34390263]
[1753238173059,0.69544986,119320.0,119310.0,0.16789064]
[1753238173272,0.68706904,119320.0,119310.0,0.17627209]
[1753238173484,0.68706904,119320.0,119310.0,0.34390263]
[1753238173696,0.68706904,119320.0,119310.0,0.33552118]
[1753238173912,0.69544986,119320.0,119310.0,0.16789064]
[1753238174757,0.68706904,119320.0,119310.0,0.17627216]
[1753238174968,0.69544986,119320.0,119310.0,0.16789064]
[1753238175177,0.69544986,119320.0,119310.0,0.17627216]
[1753238175403,0.69544986,119320.0,119310.0,0.16789064]
[1753238175621,0.47058795,119320.0,119310.0,0.16789064]
[1753238175828,0.69544986,119320.0,119310.0,0.16789064]
[1753238176245,0.69544986,119320.0,119310.0,0.17627216]
[1753238176432,0.68706904,119320.0,119310.0,0.17627216]
[1753238176641,0.69544986,119320.0,119310.0,0.17627216]
[1753238177063,0.69544986,119320.0,119310.0,0.16789064]
[1753238177268,0.69544986,119320.0,119310.0,0.17627216]
[1753238177469,0.45382603,119320.0,119310.0,0.36066525]
[1753238177838,0.47896758,119320.0,119310.0,0.16789064]
[1753238178039,0.6954493,119320.0,119310.0,0.16789064]
[1753238178254,0.6954493,119320.0,119310.0,0.17627216]
[1753238178255,0.68706897,119320.0,119310.0,0.17627216]
[1753238178467,0.69544972,119320.0,119310.0,0.16789064]
[1753238179190,0.67868885,119320.0,119310.0,0.16789064]
[1753238179666,0.67868885,119320.0,119310.0,0.17627216]
[1753238180069,0.67868885,119320.0,119310.0,0.16789064]
[1753238180420,0.67868885,119320.0,119310.0,0.17627216]
[1753238180639,0.67868885,119320.0,119310.0,0.16789064]
[1753238181010,0.45382694,119320.0,119310.0,0.16789064]
[1753238181226,0.67868885,119320.0,119310.0,0.17627216]
[1753238181438,0.68706967,119320.0,119310.0,0.17627216]
[1753238181651,0.68706967,119320.0,119310.0,0.16789064]
[1753238182302,0.46220776,119320.0,119310.0,0.16789064]
[1753238182521,0.68706967,119320.0,119310.0,0.17627216]
[1753238182744,0.67868885,119320.0,119310.0,0.3439027]
[1753238182953,0.67868885,119320.0,119310.0,0.17627216]
[1753238183166,0.67868885,119320.0,119310.0,0.16789064]
[1753238187923,0.67868885,119320.0,119310.0,0.03789064]
[1753238188152,0.98473738,119320.0,119310.0,0.13133064]
[1753238189090,0.53501356,119320.0,119310.0,0.13133064]
[1753238189347,0.26944902,119320.0,119310.0,0.22224387]
[1753238189563,0.252,119320.0,119310.0,0.368766]
[1753238190008,0.002,119320.0,119310.0,0.368766]
[1753238197694,0.42799993,119320.0,119310.0,0.22224401]
[1753238197925,0.67799979,119320.0,119310.0,0.36046525]
[1753238198155,0.67799979,119320.0,119310.0,0.36884642]
[1753238198369,0.67799979,119320.0,119310.0,0.36046525]
[1753238198608,0.68638082,119320.0,119310.0,0.36046525]
[1753238198820,0.68638082,119320.0,119310.0,0.03785064]
[1753238199040,0.6631999,119320.0,119310.0,0.16481064]
[1753238199724,0.6612399,119320.0,119310.0,0.16798064]
[1753238200166,0.6612399,119320.0,119310.0,0.17636216]
[1753238200601,0.6612399,119320.0,119310.0,0.16798064]
[1753238200824,0.6631999,119320.0,119310.0,0.16798064]
[1753238201049,0.6464384,119320.0,119310.0,0.14745064]
[1753238201284,0.66388742,119320.0,119310.0,0.14749064]
[1753238201506,0.89189933,119320.0,119310.0,0.13149064]
[1753238201731,0.66703742,119320.0,119310.0,0.13149064]
[1753238201957,0.89189933,119320.0,119310.0,0.13149064]
[1753238202231,0.66703742,119320.0,119310.0,0.13149064]
[1753238204976,0.89189933,119320.0,119310.0,0.13149064]
[1753238205415,0.66703742,119320.0,119310.0,0.13149064]
[1753238205633,1.06703742,119320.0,119310.0,0.13149064]
[1753238206071,1.39137663,119320.0,119310.0,0.00149064]
[1753238206291,1.40657663,119320.0,119310.0,0.13141064]
[1753238206941,1.15151472,119320.0,119310.0,0.13141064]
[1753238208723,1.37637663,119320.0,119310.0,0.13141064]
[1753238209783,0.97637663,119320.0,119310.0,0.13141064]
[1753238210029,0.52665281,119320.0,119310.0,0.13141064]
[1753238210241,0.43706551,119320.0,119310.0,0.16929064]
[1753238210459,0.66192742,119320.0,119310.0,0.16929064]
[1753238210678,0.66388742,119320.0,119310.0,0.16929064]
[1753238210898,0.66388742,119320.0,119310.0,0.16612064]
[1753238211125,0.66388742,119320.0,119310.0,0.14793064]
[1753238211353,0.66388742,119320.0,119310.0,0.14693064]
[1753238211548,0.66703742,119320.0,119310.0,0.13033064]
[1753238211680,0.75151472,119320.0,119310.0,0.13033064]
[1753238211902,0.52665281,119320.0,119310.0,0.13033064]
[1753238212133,0.75151472,119320.0,119310.0,0.13033064]
[1753238212564,0.74836472,119320.0,119310.0,0.13033064]
[1753238212787,0.52350281,119320.0,119310.0,0.14623064]
[1753238213217,0.53188349,119320.0,119310.0,0.16253064]
[1753238213447,0.7567454,119320.0,119310.0,0.16253064]
[1753238214713,0.53188349,119320.0,119310.0,0.16253064]
[1753238215087,0.7567454,119320.0,119310.0,0.16253064]
[1753238216129,0.53188349,119320.0,119310.0,0.16253064]
[1753238216547,0.49431093,119320.0,119310.0,0.33215118]
[1753238216752,0.68706932,119320.0,119310.0,0.35208387]
[1753238216954,0.68706932,119320.0,119310.0,0.34370263]
[1753238217164,0.68706932,119320.0,119310.0,0.35208394]
[1753238217802,0.68706932,119320.0,119310.0,0.36046504]
[1753238217971,0.69545014,119320.0,119310.0,0.36046504]
[1753238218173,0.69545014,119320.0,119310.0,0.35208394]
[1753238218388,0.68706967,119320.0,119310.0,0.35208394]
[1753238218575,0.68706967,119320.0,119310.0,0.36046518]
[1753238218991,0.67030824,119320.0,119310.0,0.34370263]
[1753238219203,0.66192742,119320.0,119310.0,0.16769064]
[1753238219611,0.66192742,119320.0,119310.0,0.34370256]
[1753238220384,0.66192742,119320.0,119310.0,0.35208387]
[1753238220608,0.67868871,119320.0,119310.0,0.36046511]
[1753238220832,0.67868871,119320.0,119310.0,0.35208387]
[1753238221051,0.67868871,119320.0,119310.0,0.34370256]
[1753238221267,0.43706551,119320.0,119310.0,0.16769064]
[1753238221497,0.97637663,119320.0,119310.0,0.13053064]
[1753238221725,1.00687663,119320.0,119310.0,0.13053064]
[1753238221939,0.97637663,119320.0,119310.0,0.13053064]
[1753238225325,1.09305393,119320.0,119310.0,0.13049064]
[1753238225539,1.00831633,119320.0,119310.0,0.13049064]
[1753238225962,1.40831633,119320.0,119310.0,0.13049064]
[1753238228329,0.95859251,119320.0,119310.0,0.13049064]
[1753238228793,0.99181633,119320.0,119310.0,0.13049064]
[1753238229026,0.97611633,119320.0,119310.0,0.13049064]
[1753238229241,1.37611633,119320.0,119310.0,0.13049064]
[1753238230749,0.97611633,119320.0,119310.0,0.13049064]
[1753238232856,1.00721633,119320.0,119310.0,0.13029064]
[1753238238301,1.0330781,119320.0,119310.0,0.00049064]
[1753238238513,1.0330781,119320.0,119310.0,0.13021064]
[1753238238731,1.0582281,119320.0,119310.0,0.13021064]
[1753238239127,1.4582281,119320.0,119310.0,0.13021064]
[1753238239379,1.5879481,119320.0,119310.0,0.13021064]
[1753238241254,1.4582281,119320.0,119310.0,0.13021064]
[1753238241467,1.0582281,119320.0,119310.0,0.13021064]
[1753238241916,1.34580128,119310.0,119300.0,0.1002]
[1753238242135,1.65514049,119310.0,119300.0,0.2300671]
[1753238242352,1.65728049,119310.0,119300.0,0.2300671]
[1753238242595,1.65728049,119310.0,119300.0,0.2450671]
[1753238243249,1.43241858,119310.0,119300.0,0.2450671]
[1753238243465,1.65728049,119310.0,119300.0,0.2450671]
[1753238243706,1.65828049,119310.0,119300.0,0.2470671]
[1753238244073,1.43341858,119310.0,119300.0,0.2470671]
[1753238244315,1.65828049,119310.0,119300.0,0.2470671]
[1753238244545,1.65828049,119310.0,119300.0,0.2480671]
[1753238245023,1.90828049,119310.0,119300.0,0.2480671]
[1753238245244,1.68341858,119310.0,119300.0,0.2480671]
[1753238245471,1.90828049,119310.0,119300.0,0.2480671]
[1753238246372,1.90828049,119310.0,119300.0,0.2642671]
[1753238246847,1.91123049,119310.0,119300.0,0.2333471]
[1753238247050,1.91123049,119310.0,119300.0,0.2490471]
[1753238247264,1.90828049,119310.0,119300.0,0.2650471]
[1753238247481,1.92572951,119310.0,119300.0,0.2333471]
[1753238247748,1.7038176,119310.0,119300.0,0.2333471]
[1753238247968,1.95383151,119310.0,119300.0,0.2333471]
[1753238248418,1.18404215,119310.0,119300.0,0.2333471]
[1753238248629,1.18404215,119310.0,119300.0,0.2323471]
[1753238249065,1.18504215,119310.0,119300.0,0.2323471]
[1753238249279,1.18404215,119310.0,119300.0,0.2303471]
[1753238249504,0.96118024,119310.0,119300.0,0.2313471]
[1753238249719,1.18604215,119310.0,119300.0,0.2313471]
[1753238251170,1.18604215,119310.0,119300.0,0.2313071]
[1753238251388,1.43257945,119310.0,119300.0,0.1013471]
[1753238251822,0.91600215,119310.0,119300.0,0.1013471]
[1753238257229,0.56118024,119310.0,119300.0,0.1013471]
[1753238257433,0.91624215,119310.0,119300.0,0.1013471]
[1753238257785,0.91624215,119310.0,119300.0,0.0963471]
[1753238259889,0.78604215,119310.0,119300.0,0.0963471]
[1753238260091,0.91616215,119310.0,119300.0,0.1276471]
[1753238260516,0.91616215,119310.0,119300.0,0.1115471]
[1753238260943,0.91616215,119310.0,119300.0,0.0963471]
[1753238262138,0.4,119300.0,119280.0,0.13312]
[1753238262360,0.74028158,119290.0,119280.0,0.13316901]
[1753238262577,0.86830415,119290.0,119280.0,0.00304901]
[1753238262795,0.89639015,119290.0,119280.0,0.00304901]
[1753238263045,1.22859015,119290.0,119280.0,0.00304901]
[1753238263264,1.56859015,119290.0,119280.0,0.00304901]
[1753238263490,1.57875398,119290.0,119280.0,0.00304901]
[1753238263715,1.58075398,119290.0,119280.0,0.00404901]
[1753238264150,1.58175398,119290.0,119280.0,0.00404901]
[1753238264587,1.57159015,119290.0,119280.0,0.00404901]
[1753238264814,1.56959015,119290.0,119280.0,0.00304901]
[1753238265248,1.57259015,119290.0,119280.0,0.00404901]
[1753238265712,1.57159015,119290.0,119280.0,0.00404901]
[1753238266131,1.57359015,119290.0,119280.0,0.00504901]
[1753238266343,1.65806745,119290.0,119280.0,0.00504901]
[1753238267899,1.44574745,119290.0,119280.0,0.00504901]
[1753238268134,1.13136824,119290.0,119280.0,0.04234901]
[1753238268339,1.26160824,119290.0,119280.0,0.04234901]
[1753238268942,1.13136824,119290.0,119280.0,0.04234901]
[1753238272021,1.13347824,119290.0,119280.0,0.04234901]
[1753238272218,1.53347824,119290.0,119280.0,0.04234901]
[1753238273040,1.58418555,119290.0,119280.0,0.04234901]
[1753238273248,1.18711555,119290.0,119280.0,0.00504901]
[1753238274062,1.54213746,119290.0,119280.0,0.00504901]
[1753238276718,1.26656824,119290.0,119280.0,0.00504901]
[1753238276939,1.26656824,119290.0,119280.0,0.03734901]
[1753238277155,1.26152824,119290.0,119280.0,0.04254901]
[1753238277364,1.03666633,119290.0,119280.0,0.04254901]
[1753238277590,1.26152824,119290.0,119280.0,0.04254901]
[1753238279185,1.13136824,119290.0,119280.0,0.04254901]
[1753238280361,0.77391922,119290.0,119280.0,0.04254901]
[1753238280623,0.74876322,119290.0,119280.0,0.04254901]
[1753238280953,0.76621224,119290.0,119280.0,0.04254901]
[1753238282104,0.46525575,119290.0,119280.0,0.04254901]
[1753238282399,0.46525575,119290.0,119280.0,0.05093264]
[1753238282618,0.43942387,119290.0,119280.0,0.22698876]
[1753238282840,0.44780666,119290.0,119280.0,0.23537211]
[1753238283056,0.46525561,119290.0,119280.0,0.24375539]
[1753238283252,0.45687289,119290.0,119280.0,0.24375539]
[1753238283533,0.46525568,119290.0,119280.0,0.22698876]
[1753238283779,0.46525568,119290.0,119280.0,0.35706876]
[1753238283998,0.46525568,119290.0,119280.0,0.23537211]
[1753238284223,0.46525568,119290.0,119280.0,0.36541211]
[1753238284688,0.47363854,119290.0,119280.0,0.2269889]
[1753238284915,0.47363854,119290.0,119280.0,0.3570289]
[1753238285145,0.46525568,119290.0,119280.0,0.36541239]
[1753238285423,0.45687289,119290.0,119280.0,0.38217888]
[1753238285638,0.45687289,119290.0,119280.0,0.36541239]
[1753238285859,0.46525568,119290.0,119280.0,0.37379574]
[1753238286320,0.45687289,119290.0,119280.0,0.3821786]
[1753238286540,0.46525568,119290.0,119280.0,0.36541211]
[1753238286783,0.46525568,119290.0,119280.0,0.36541218]
[1753238287018,0.46525568,119290.0,119280.0,0.35702876]
[1753238287234,0.47363861,119290.0,119280.0,0.35702876]
[1753238287475,0.69850052,119290.0,119280.0,0.04254901]
[1753238287695,0.68173529,119290.0,119280.0,0.17258901]
[1753238288420,0.68173529,119290.0,119280.0,0.04254901]
[1753238288652,0.68173529,119290.0,119280.0,0.17254901]
[1753238290478,0.45687303,119290.0,119280.0,0.17254901]
[1753238290691,0.46525589,119290.0,119280.0,0.34860527]
[1753238290898,0.46525589,119290.0,119280.0,0.34860534]
[1753238291112,0.6901178,119290.0,119280.0,0.3569889]
[1753238291745,0.6901178,119290.0,119280.0,0.36537239]
[1753238291957,0.46525589,119290.0,119280.0,0.34860534]
[1753238292185,0.46525589,119290.0,119280.0,0.3569889]
[1753238292428,0.46525589,119290.0,119280.0,0.34860534]
[1753238292685,0.46525589,119290.0,119280.0,0.3569889]
[1753238294249,0.46525589,119290.0,119280.0,0.18093264]
[1753238294458,0.46525589,119290.0,119280.0,0.17254901]
[1753238294876,0.67335243,119290.0,119280.0,0.17254901]
[1753238296179,0.66496957,119290.0,119280.0,0.17254901]
[1753238296894,0.42265864,119290.0,119280.0,0.34022171]
[1753238297096,0.44780631,119290.0,119280.0,0.35698862]
[1753238297326,0.44780631,119290.0,119280.0,0.3653719]
[1753238297528,0.44780631,119290.0,119280.0,0.37375511]
[1753238297744,0.44780631,119290.0,119280.0,0.38213825]
[1753238297944,0.44780631,119290.0,119280.0,0.3653719]
[1753238298159,0.46457203,119290.0,119280.0,0.36537204]
[1753238298383,0.4561891,119290.0,119280.0,0.37375532]
[1753238299628,0.46457196,119290.0,119280.0,0.36537204]
[1753238299859,0.46457196,119290.0,119280.0,0.37375532]
[1753238300301,0.4561891,119290.0,119280.0,0.37375532]
[1753238300741,0.43104101,119290.0,119280.0,0.38213853]
[1753238300955,0.255,119290.0,119280.0,0.38213811]
[1753238301821,0.253,119290.0,119280.0,0.38113811]
[1753238302051,0.25838229,119290.0,119280.0,0.38013811]
[1753238302246,0.26776473,119290.0,119280.0,0.38213811]
[1753238302707,0.25938229,119290.0,119280.0,0.38213811]
[1753238303142,0.252,119290.0,119280.0,0.38213811]
[1753238303605,0.251,119290.0,119280.0,0.38213811]
[1753238304036,0.001,119290.0,119280.0,0.38213811]
[1753238307655,0.001,119290.0,119280.0,0.46661541]
[1753238307861,0.001,119290.0,119280.0,0.80661541]
[1753238317774,0.00938237,119290.0,119280.0,0.80661541]
[1753238318147,0.00938237,119290.0,119280.0,0.77296243]
[1753238318148,0.1938061,119290.0,119280.0,0.77296243]
[1753238318358,0.1938061,119290.0,119280.0,0.7897292]
[1753238318558,0.1938061,119290.0,119280.0,0.78134599]
[1753238318759,0.00938237,119290.0,119280.0,0.79811234]
[1753238319101,0.23424428,119290.0,119280.0,0.79811234]
[1753238319508,0.00938237,119290.0,119280.0,0.79811234]
[1753238320276,0.17704101,119290.0,119280.0,0.79811234]
[1753238320490,0.18542359,119290.0,119280.0,0.79811234]
[1753238320839,0.00938237,119290.0,119280.0,0.79811234]
[1753238321046,0.00938229,119290.0,119280.0,0.79811234]
[1753238321654,0.01776466,119290.0,119280.0,0.79811234]
[1753238322384,0.00938229,119290.0,119280.0,0.79811234]
[1753238323144,0.001,119290.0,119280.0,0.79811234]
[1753238331761,0.001,119290.0,119280.0,1.02297425]
[1753238332677,0.001,119290.0,119280.0,1.02397425]
[1753238333094,0.001,119290.0,119280.0,0.79911234]
[1753238333258,0.001,119290.0,119280.0,1.02397425]
[1753238333451,0.25,119310.0,119300.0,0.56469041]
[1753238333651,0.25,119310.0,119300.0,0.78421771]
[1753238333856,0.25838026,119320.0,119310.0,0.19277426]
[1753238334075,0.55768026,119320.0,119310.0,0.35972426]
[1753238334513,0.79930304,119320.0,119310.0,0.35972426]
[1753238334976,0.55530297,119320.0,119310.0,0.36072426]
[1753238335205,0.5469225,119320.0,119310.0,0.36072426]
[1753238335418,0.5489225,119320.0,119310.0,0.36172426]
[1753238336047,0.32406059,119320.0,119310.0,0.36172426]
[1753238336280,0.54054217,119320.0,119310.0,0.36172426]
[1753238337048,0.53454217,119320.0,119310.0,0.36072426]
[1753238337235,0.78754217,119320.0,119310.0,0.36172426]
[1753238337453,0.78554217,119320.0,119310.0,0.36072426]
[1753238337659,0.78654217,119320.0,119310.0,0.36072426]
[1753238338272,0.79492257,119320.0,119310.0,0.36072426]
[1753238338473,0.78654217,119320.0,119310.0,0.36072426]
[1753238338751,0.96468906,119320.0,119310.0,0.36072426]
[1753238339324,0.79707257,119320.0,119310.0,0.36072426]
[1753238340230,0.78869217,119320.0,119310.0,0.36072426]
[1753238340440,0.79492264,119320.0,119310.0,0.36072426]
[1753238340677,0.78654217,119320.0,119310.0,0.36072426]
[1753238340925,0.80330297,119320.0,119310.0,0.36072426]
[1753238341135,0.97091946,119320.0,119310.0,0.36072426]
[1753238341601,0.8033029,119320.0,119310.0,0.36072426]
[1753238342627,0.57844099,119320.0,119310.0,0.36072426]
[1753238342840,0.8054529,119320.0,119310.0,0.36072426]
[1753238343051,0.7970725,119320.0,119310.0,0.36072426]
[1753238343343,0.80545297,119320.0,119310.0,0.36072426]
[1753238343794,0.97306946,119320.0,119310.0,0.36072426]
[1753238345026,0.98145,119320.0,119310.0,0.36072426]
[1753238345234,0.80545297,119320.0,119310.0,0.36072426]
[1753238346354,0.98145,119320.0,119310.0,0.36072426]
[1753238347003,0.97306946,119320.0,119310.0,0.36072426]
[1753238347442,0.7970725,119320.0,119310.0,0.36072426]
[1753238347651,0.80545297,119320.0,119310.0,0.36072426]
[1753238348085,0.97306946,119320.0,119310.0,0.36072426]
[1753238348478,0.7970725,119320.0,119310.0,0.36072426]